bitfinex/quotes_ETHUSD_20240716
["timestamp","ask_amount","ask_price","bid_price","bid_amount"]
[1721119408916,0.61598116,3368.0,3367.9,4.32769108]
[1721119409217,0.61598116,3368.1,3367.9,4.32769108]
[1721119409444,0.61598116,3368.0,3367.9,4.32769108]
[1721119409644,0.61598116,3368.1,3367.9,4.32769108]
[1721119411416,0.61598116,3368.2,3368.0,3.113]
[1721119411756,0.61598116,3368.2,3368.0,6.08212]
[1721119412426,0.61606788,3368.2,3368.0,6.08212]
[1721119413170,0.61606788,3368.3,3368.0,6.08212]
[1721119413660,0.61606788,3368.2,3368.0,2.96912]
[1721119413835,0.61606788,3368.2,3368.1,0.546402]
[1721119414236,0.61606788,3368.3,3368.1,0.546402]
[1721119415737,0.61606788,3368.2,3368.1,0.694402]
[1721119415935,0.61606788,3368.2,3368.1,0.148]
[1721119416175,0.61606788,3368.3,3368.1,0.148]
[1721119416374,0.61606788,3368.4,3368.1,0.148]
[1721119416735,0.61606788,3368.4,3368.2,6.08192]
[1721119416970,0.61606788,3368.5,3368.3,0.622992]
[1721119417763,0.61606788,3368.4,3368.3,0.622992]
[1721119417967,0.92410182,3368.5,3368.2,6.08192]
[1721119418163,0.6151058,3368.3,3368.2,6.08192]
[1721119418367,0.6151058,3368.4,3368.2,3.113]
[1721119418543,0.6151058,3368.3,3368.1,0.148]
[1721119419555,0.6151058,3368.2,3368.1,0.148]
[1721119419743,0.6151058,3368.3,3368.1,0.148]
[1721119420453,0.6151058,3368.4,3368.2,0.31171]
[1721119420660,0.6151058,3368.3,3368.1,0.148]
[1721119420973,0.6151058,3368.4,3368.1,0.148]
[1721119421335,0.6151058,3368.5,3368.1,0.148]
[1721119422288,0.6151058,3368.4,3368.1,0.148]
[1721119423479,0.6151058,3368.4,3368.1,1.317429]
[1721119425240,0.61493435,3368.4,3368.1,1.317429]
[1721119425720,0.61493435,3368.4,3368.1,4.286399]
[1721119425997,0.61493435,3368.4,3368.2,2.96892]
[1721119426144,0.61493435,3368.5,3368.2,2.96892]
[1721119426340,0.61493435,3368.5,3368.3,2.96884]
[1721119426584,0.61493435,3368.6,3368.4,5.4046]
[1721119426748,7.37,3369.2,3368.4,5.4046]
[1721119426749,0.61493435,3369.0,3368.5,2.96868]
[1721119426955,0.61493435,3369.0,3368.4,5.46396911]
[1721119426956,0.61493435,3369.0,3368.9,3.113]
[1721119427166,0.61493435,3369.2,3368.9,3.72707823]
[1721119428366,0.61493435,3369.2,3368.9,6.69539823]
[1721119428596,0.92240153,3369.4,3368.9,6.69539823]
[1721119428597,0.61493435,3369.3,3368.9,6.69539823]
[1721119428753,1.22986871,3369.6,3368.9,6.69539823]
[1721119428754,0.61493435,3369.4,3369.0,2.2756]
[1721119429767,0.61493435,3369.6,3369.0,5.24382]
[1721119430087,0.61493435,3369.6,3369.1,4.16207082]
[1721119430397,0.61493435,3369.7,3369.1,4.16207082]
[1721119430622,1.22986871,3370.0,3369.2,2.96804]
[1721119430623,0.61493435,3369.8,3369.2,2.96804]
[1721119430765,0.61493435,3369.8,3369.3,3.113]
[1721119431163,0.1472917,3370.1,3369.3,3.113]
[1721119431164,0.61493435,3369.9,3369.3,6.08096]
[1721119431464,0.1472917,3370.1,3369.3,6.08096]
[1721119431762,0.61433025,3369.9,3369.4,0.05934964]
[1721119431970,0.61433025,3370.0,3369.4,0.05934964]
[1721119432174,0.61433025,3370.0,3369.4,1.1015243]
[1721119432375,0.76162195,3370.1,3369.5,2.96776]
[1721119432574,0.61433025,3370.0,3369.5,2.96776]
[1721119432797,0.61433025,3370.0,3369.4,4.01004466]
[1721119432963,0.76162195,3370.1,3369.3,3.113]
[1721119433171,0.61433025,3369.9,3369.3,3.113]
[1721119433402,0.1472917,3370.1,3369.3,3.113]
[1721119433403,0.1472917,3370.1,3369.4,5.24342]
[1721119433571,0.1472917,3370.1,3369.4,8.24342]
[1721119434465,0.1472917,3370.1,3369.5,3.02711598]
[1721119434668,0.1472917,3370.1,3369.6,4.4060686]
[1721119436200,0.1472917,3370.1,3369.6,7.5190686]
[1721119437244,0.1472917,3370.1,3369.7,2.96761]
[1721119439221,0.1472917,3370.1,3369.8,2.96752]
[1721119440246,0.1472917,3370.1,3369.9,2.96739]
[1721119440413,0.1472917,3370.1,3370.0,0.593491]
[1721119441501,0.1472917,3370.1,3370.0,5.840241]
[1721119441700,0.1472917,3370.1,3370.0,2.872891]
[1721119442126,0.1472917,3370.1,3370.0,2.2794]
[1721119442704,0.1472917,3370.1,3369.7,3.0]
[1721119442976,0.1472917,3370.1,3369.2,8.56326]
[1721119443128,0.1472917,3370.1,3369.3,3.0]
[1721119443821,0.1472917,3370.1,3369.4,0.05934943]
[1721119444026,0.1472917,3370.1,3369.7,3.113]
[1721119444250,0.1472917,3370.1,3369.9,2.96737]
[1721119444925,0.1472917,3370.1,3369.8,2.454]
[1721119447470,0.1472917,3370.1,3369.6,3.113]
[1721119447471,2.5498917,3370.1,3369.6,3.113]
[1721119447624,2.96778,3369.6,3368.5,9.5991]
[1721119447843,2.96778,3369.6,3368.5,3.555894]
[1721119448034,0.61368587,3369.7,3368.6,6.08152]
[1721119448237,0.92052881,3369.9,3368.6,6.08152]
[1721119448238,0.61368587,3369.8,3368.6,6.08152]
[1721119448656,0.61368587,3369.8,3368.7,2.96849]
[1721119448857,0.61368587,3369.7,3368.7,2.96849]
[1721119449067,0.61368587,3369.7,3368.8,3.9637384]
[1721119449836,0.61368587,3369.8,3368.8,3.9637384]
[1721119450042,3.88799881,3369.9,3369.0,3.113]
[1721119450043,0.61368587,3369.9,3369.0,3.113]
[1721119450558,0.61368587,3369.7,3368.8,6.9321384]
[1721119451166,0.61368587,3369.7,3368.8,3.9637384]
[1721119451352,0.61368587,3369.7,3368.9,1.00452084]
[1721119452164,0.61368587,3369.8,3368.9,3.97283084]
[1721119452541,0.61368587,3369.7,3368.9,3.97283084]
[1721119452975,0.1472917,3370.1,3369.6,2.96771]
[1721119453285,0.1472917,3370.1,3369.7,1.161541]
[1721119454293,0.1472917,3370.1,3369.6,3.0]
[1721119454459,0.1472917,3370.1,3369.5,5.3987]
[1721119455388,0.1472917,3370.1,3369.6,2.96762]
[1721119455554,0.1472917,3370.1,3369.5,8.36649]
[1721119455756,0.1472917,3370.1,3369.8,2.96745]
[1721119455955,0.1472917,3370.1,3369.9,0.296745]
[1721119456453,0.1472917,3370.1,3369.9,3.264125]
[1721119457581,0.1472917,3370.1,3370.0,5.96735]
[1721119458692,0.1472917,3370.1,3370.0,8.9347]
[1721119460693,0.1472917,3370.1,3370.0,11.2922]
[1721119460923,0.1472917,3370.1,3370.0,12.7623945]
[1721119462830,0.1472917,3370.1,3370.0,9.7950445]
[1721119463005,0.1472917,3370.1,3370.0,7.4375445]
[1721119463208,0.1472917,3370.1,3370.0,10.4048945]
[1721119464522,0.1472917,3370.1,3370.0,10.9548945]
[1721119465135,0.1472917,3370.1,3370.0,14.0678945]
[1721119465549,0.1472917,3370.1,3370.0,20.1712445]
[1721119465771,0.1472917,3370.1,3370.0,22.5533445]
[1721119466253,0.61483013,3371.5,3370.9,2.96647]
[1721119466465,0.61483013,3371.5,3371.0,3.0]
[1721119466466,0.61483013,3371.3,3371.0,3.0]
[1721119466610,1.22966027,3371.7,3371.0,3.0]
[1721119466611,0.61483013,3371.4,3371.0,3.0]
[1721119467011,0.61483013,3371.4,3370.5,6.0799]
[1721119467012,0.61483013,3371.4,3370.8,3.0]
[1721119467258,0.9222452,3371.5,3370.7,3.0]
[1721119467259,0.61483013,3371.3,3370.7,3.0]
[1721119468355,0.61483013,3371.0,3370.7,3.0]
[1721119468550,0.61483013,3371.0,3370.4,2.96698]
[1721119468760,0.61483013,3370.9,3370.5,3.0]
[1721119469255,0.61483013,3371.0,3370.5,5.96691]
[1721119469437,0.9222452,3371.2,3370.5,5.96691]
[1721119469438,0.61483013,3370.9,3370.5,5.96691]
[1721119470010,0.61483013,3371.0,3370.5,5.96691]
[1721119470210,0.61483013,3371.1,3370.6,2.9668]
[1721119470419,0.61483013,3371.1,3370.7,1.0138514]
[1721119470760,0.61483013,3371.1,3370.7,3.9805014]
[1721119470964,0.61483013,3371.2,3370.7,3.9805014]
[1721119471119,0.61483013,3371.3,3370.9,2.96652]
[1721119471316,0.61483013,3371.4,3370.9,2.96652]
[1721119471627,0.61483013,3371.3,3370.9,2.96652]
[1721119471875,0.61483013,3371.3,3371.0,2.96645]
[1721119472083,0.61483013,3371.4,3371.0,2.96645]
[1721119472534,0.61483013,3371.6,3371.3,2.96614]
[1721119473237,0.61483013,3371.8,3371.5,2.96603]
[1721119473476,0.61483013,3371.8,3371.1,2.96636]
[1721119473667,0.61483013,3371.6,3371.2,3.0]
[1721119474073,0.61483013,3371.5,3370.9,0.92723214]
[1721119474270,0.61483013,3371.5,3371.0,3.98978035]
[1721119474471,0.61483013,3371.5,3371.1,3.0]
[1721119474649,0.61483013,3371.5,3371.0,4.02331035]
[1721119474971,0.9222452,3371.7,3371.0,4.02331035]
[1721119474972,0.61540188,3371.4,3371.1,3.0]
[1721119475157,0.61540188,3371.4,3370.7,1.0138514]
[1721119475472,0.61546547,3371.3,3370.7,1.0138514]
[1721119475676,0.61546547,3371.3,3370.7,6.9805814]
[1721119475849,0.61546547,3371.3,3370.7,3.9805814]
[1721119476052,0.61546547,3371.3,3370.3,2.2776]
[1721119476260,0.61546547,3371.1,3370.3,2.2776]
[1721119476586,0.61546547,3371.0,3370.3,5.24468]
[1721119477478,0.61546547,3371.0,3370.3,8.35768]
[1721119477900,0.61546547,3371.0,3370.3,5.3906]
[1721119478055,0.61546547,3371.1,3370.5,2.96691]
[1721119478246,0.61546547,3371.2,3370.5,2.96691]
[1721119479165,0.61546547,3371.2,3370.7,2.96672]
[1721119479370,0.92319821,3371.3,3370.7,2.96672]
[1721119479371,0.61546547,3371.3,3370.7,2.96672]
[1721119479578,0.61546547,3371.3,3370.7,3.6736606]
[1721119479880,0.61546547,3371.3,3370.8,2.96664]
[1721119480193,0.92319821,3371.4,3370.7,3.8199406]
[1721119480194,0.61546547,3371.4,3370.9,2.96656]
[1721119480355,0.61546547,3371.4,3370.7,6.7866706]
[1721119480557,0.61546547,3371.5,3370.8,3.64529706]
[1721119480866,0.61546547,3371.5,3371.1,2.96637]
[1721119481060,0.61534937,3371.5,3371.1,2.96637]
[1721119481271,0.61534937,3371.6,3371.1,2.96637]
[1721119482583,1.23069875,3371.9,3371.1,2.96637]
[1721119482584,0.61534937,3371.7,3371.1,2.96637]
[1721119482900,0.61534937,3371.7,3371.2,3.2776445]
[1721119483269,0.61534937,3371.7,3371.2,0.3113645]
[1721119483586,0.61534937,3371.8,3371.2,0.3113645]
[1721119483817,0.61534937,3371.8,3371.3,2.96614]
[1721119483968,0.61534937,3371.8,3370.8,3.67866706]
[1721119483969,2.91974937,3371.8,3370.8,0.67866706]
[1721119484315,0.61534937,3371.5,3370.7,2.96671]
[1721119484455,0.61534937,3371.5,3370.7,2.96672]
[1721119484957,0.61534937,3371.6,3370.7,2.96672]
[1721119485157,0.61534937,3371.6,3371.1,2.96637]
[1721119485358,1.23069875,3372.0,3371.2,2.3589]
[1721119485359,0.61534937,3371.7,3371.2,2.3589]
[1721119485664,0.61534937,3371.8,3371.4,2.9661]
[1721119485865,0.61534937,3371.7,3371.2,2.3589]
[1721119486591,0.61534937,3371.7,3371.2,5.32516]
[1721119486755,0.61534937,3371.8,3371.4,2.96608]
[1721119486956,0.61534937,3371.8,3371.2,5.32516]
[1721119487305,0.61534937,3371.8,3371.4,2.96612]
[1721119487452,0.61473108,3371.9,3371.4,2.96612]
[1721119487657,0.61473108,3372.0,3371.5,2.96602]
[1721119487890,1.22946216,3372.3,3371.6,2.4985]
[1721119487891,0.61473108,3372.1,3371.6,2.4985]
[1721119488119,0.61473108,3372.3,3371.7,0.24985]
[1721119488590,0.61473108,3372.4,3371.7,0.24985]
[1721119488898,0.61473108,3372.4,3371.7,3.21565]
[1721119489105,0.61473108,3372.4,3371.7,0.24985]
[1721119489953,0.61473108,3372.4,3371.8,2.9657]
[1721119490178,1.22946216,3372.8,3371.9,0.50093381]
[1721119490179,0.61473108,3372.5,3371.9,0.50093381]
[1721119490556,0.61473108,3372.5,3371.8,2.9657]
[1721119490756,0.61473108,3372.4,3371.8,2.9657]
[1721119490993,0.61473108,3372.4,3371.7,0.24985]
[1721119491295,0.92209662,3372.6,3371.7,3.2157]
[1721119491296,0.61473108,3372.5,3371.7,3.2157]
[1721119491598,0.61473108,3372.5,3371.8,0.868023]
[1721119492497,0.61473108,3372.5,3371.8,3.833783]
[1721119492700,0.61473108,3372.6,3371.8,3.981783]
[1721119493309,0.61473108,3372.7,3371.8,3.981783]
[1721119493474,0.61473108,3372.7,3372.2,2.96534]
[1721119493683,0.61473108,3372.8,3372.2,2.96534]
[1721119494008,0.61473108,3372.9,3372.2,2.96534]
[1721119494177,0.61473108,3372.9,3372.1,5.28373]
[1721119494178,0.61473108,3373.0,3372.3,3.790237]
[1721119494561,0.61473108,3372.9,3372.3,3.790237]
[1721119494764,0.61473108,3373.0,3372.3,3.790237]
[1721119495363,0.61473108,3372.9,3372.4,2.96523]
[1721119495559,0.61473108,3372.9,3372.5,0.3790137]
[1721119497070,0.61473108,3373.0,3372.5,0.3790137]
[1721119497467,0.61473108,3372.9,3372.5,0.3790137]
[1721119497805,0.61473108,3372.6,3372.1,2.3183]
[1721119498501,0.61473108,3372.7,3372.1,5.28375]
[1721119499371,0.61473108,3372.7,3372.2,2.96535]
[1721119499569,0.61473108,3372.8,3372.2,2.96535]
[1721119499812,0.61531652,3372.8,3372.3,0.824923]
[1721119500316,0.61531652,3372.8,3372.3,3.790253]
[1721119500521,0.61531652,3372.9,3372.3,3.790253]
[1721119500865,0.61531652,3372.8,3372.3,3.790253]
[1721119501088,0.61531652,3373.0,3372.7,2.9649]
[1721119501308,0.61531652,3373.1,3372.7,2.9649]
[1721119501610,0.61531652,3373.2,3372.7,2.9649]
[1721119501809,0.61531652,3373.1,3372.5,2.96509]
[1721119502028,0.61531652,3372.9,3372.6,2.3858]
[1721119502216,0.61531652,3373.1,3372.6,3.0034043]
[1721119502370,0.61531652,3373.1,3372.6,2.3858]
[1721119502575,0.61531652,3372.8,3372.1,2.3858]
[1721119502781,0.61531652,3372.9,3372.4,2.96523]
[1721119503205,0.61531652,3373.0,3372.5,2.96515]
[1721119503517,0.61531652,3373.1,3372.5,2.96515]
[1721119503671,0.61531652,3373.2,3372.7,2.96497]
[1721119506725,0.61531652,3373.4,3373.1,2.96463]
[1721119506912,0.1472917,3373.5,3373.3,2.96443]
[1721119508279,0.1472917,3373.5,3373.4,2.96436]
[1721119508642,0.1472917,3373.5,3373.4,3.557259]
[1721119510424,0.1472917,3373.5,3373.4,6.521619]
[1721119510774,0.1472917,3373.5,3373.4,3.557259]
[1721119512002,0.1472917,3373.5,3373.4,0.592899]
[1721119512212,0.1472917,3373.5,3373.4,6.521619]
[1721119512643,0.1472917,3373.5,3373.4,5.881759]
[1721119512809,0.1472917,3373.5,3373.4,2.917399]
[1721119513304,0.1472917,3373.5,3373.4,0.592899]
[1721119513707,0.1472917,3373.5,3372.6,2.3174]
[1721119513891,0.1472917,3373.5,3372.6,5.3174]
[1721119514104,0.1472917,3373.5,3372.6,5.28243]
[1721119514604,0.1472917,3373.5,3372.5,0.296515]
[1721119514826,0.61525275,3373.3,3372.2,9.6174]
[1721119514994,3.02615275,3373.3,3372.2,2.3174]
[1721119515194,3.57981275,3373.2,3371.8,5.28317]
[1721119515498,0.61525275,3373.1,3371.9,2.96568]
[1721119515735,0.61525275,3373.1,3371.8,2.3174]
[1721119515736,0.61525275,3373.1,3372.0,2.96557]
[1721119515892,0.61525275,3373.1,3372.1,0.824874]
[1721119516613,0.61525275,3373.3,3372.2,2.96541]
[1721119517108,0.61525275,3373.4,3372.5,2.96513]
[1721119517504,0.61525275,3373.4,3372.1,3.790364]
[1721119517706,0.61525275,3373.3,3372.2,0.6903364]
[1721119517919,3.61525275,3373.3,3372.2,0.6903364]
[1721119518245,3.0,3373.3,3372.4,2.96524]
[1721119518455,0.61525275,3373.4,3372.4,2.96524]
[1721119518746,0.76254445,3373.5,3372.6,2.96498]
[1721119518893,0.76254445,3373.5,3372.6,3.807582]
[1721119519093,0.76254445,3373.5,3372.6,0.842602]
[1721119519094,0.61525275,3373.4,3372.6,0.842602]
[1721119520326,0.76254445,3373.5,3372.6,0.842602]
[1721119520543,0.61525275,3373.4,3372.6,0.842602]
[1721119521445,0.61525275,3373.4,3372.5,2.4958]
[1721119521768,0.61525275,3373.3,3372.5,2.4958]
[1721119523269,0.61525275,3373.2,3372.5,2.4958]
[1721119524476,0.61525275,3373.0,3372.2,0.6903364]
[1721119524799,0.61525275,3373.3,3372.8,3.113]
[1721119525068,0.76254445,3373.5,3372.9,2.4662]
[1721119525285,0.1472917,3373.5,3372.9,2.4662]
[1721119525631,0.1472917,3373.5,3372.9,5.43094]
[1721119525885,0.1472917,3373.5,3373.0,1.150891]
[1721119526256,0.1472917,3373.5,3373.0,4.115591]
[1721119526643,0.1472917,3373.5,3373.0,1.150891]
[1721119527848,0.61525275,3373.4,3372.4,5.3918]
[1721119528041,3.57988275,3373.1,3371.9,2.2788]
[1721119528273,0.61525275,3372.9,3371.9,2.2788]
[1721119528491,0.61525275,3372.8,3371.9,2.2788]
[1721119528701,0.61525275,3372.8,3372.0,0.821035]
[1721119528874,0.61525275,3372.4,3371.4,5.32835]
[1721119529273,0.61525275,3372.4,3371.4,2.3623]
[1721119529274,0.61525275,3372.2,3371.4,2.3623]
[1721119529475,0.61525275,3372.1,3371.4,2.3623]
[1721119529797,0.61525275,3372.1,3371.5,0.844149]
[1721119530571,0.61540317,3372.1,3371.5,0.844149]
[1721119530988,0.61540317,3372.0,3371.5,0.844149]
[1721119531196,0.61540317,3372.1,3371.5,0.844149]
[1721119531400,0.61540317,3372.1,3371.6,0.6172639]
[1721119531618,0.61540317,3372.2,3371.6,0.6172639]
[1721119532112,0.61540317,3372.1,3371.5,0.844149]
[1721119532258,0.61540317,3372.0,3371.4,2.3623]
[1721119532458,0.92310476,3372.1,3371.0,3.113]
[1721119532459,0.61540317,3371.9,3371.0,3.113]
[1721119532695,0.61540317,3371.8,3370.9,5.30594]
[1721119532878,0.61540317,3371.6,3370.9,5.30594]
[1721119533262,0.61540317,3371.5,3370.9,2.3394]
[1721119533458,0.61540317,3371.5,3370.9,3.181313]
[1721119533700,0.61540317,3371.6,3370.9,3.181313]
[1721119533917,0.61540317,3371.6,3370.4,2.4103]
[1721119533918,0.61540317,3371.2,3370.4,2.4103]
[1721119534499,0.61540317,3371.2,3370.4,5.37727]
[1721119534865,0.61540317,3371.3,3370.4,2.4103]
[1721119535303,0.61540317,3371.3,3370.4,5.37729]
[1721119535505,0.61540317,3371.3,3370.5,1.149029]
[1721119536186,0.61540317,3371.1,3370.4,2.4103]
[1721119537115,0.92310476,3371.3,3370.4,2.4103]
[1721119537116,0.61540317,3371.3,3370.4,2.4103]
[1721119537317,0.61540317,3371.3,3370.4,5.4103]
[1721119537519,0.61540317,3371.4,3370.4,5.4103]
[1721119537895,0.61540317,3371.4,3370.5,2.96688]
[1721119538099,0.61540317,3371.6,3370.9,2.96653]
[1721119538298,0.61540317,3371.7,3370.9,2.96653]
[1721119538495,0.61540317,3371.9,3370.9,2.96653]
[1721119539105,0.61540317,3371.8,3370.8,2.96664]
[1721119539901,3.57989053,3371.7,3370.6,1.149018]
[1721119540087,0.61402053,3371.6,3370.6,1.149018]
[1721119540283,0.61402053,3371.5,3370.6,1.149018]
[1721119541411,0.61402053,3371.5,3370.7,0.9526308]
[1721119541639,0.61402053,3371.6,3370.7,0.9526308]
[1721119541856,3.8869008,3371.7,3370.7,0.9526308]
[1721119541857,0.61402053,3371.7,3370.7,0.9526308]
[1721119542016,0.61402053,3371.7,3370.7,3.9193708]
[1721119542338,0.61402053,3372.0,3370.9,2.3741]
[1721119542528,0.61402053,3372.2,3371.1,3.113]
[1721119542840,0.61402053,3372.3,3371.1,3.113]
[1721119543043,0.61402053,3372.3,3371.4,2.9661]
[1721119543242,0.9210308,3372.4,3371.4,2.9661]
[1721119543243,0.61402053,3372.4,3371.4,2.9661]
[1721119543431,0.61402053,3372.4,3371.5,2.96601]
[1721119543635,0.61402053,3372.4,3371.6,3.262541]
[1721119543818,0.61402053,3372.5,3371.6,3.262541]
[1721119544004,0.61402053,3372.5,3371.7,0.05930918]
[1721119544338,0.61402053,3372.6,3371.8,5.40545]
[1721119544543,0.9210308,3372.8,3371.8,5.40545]
[1721119544544,0.61402053,3372.7,3371.8,5.40545]
[1721119544836,0.61402053,3372.7,3371.8,5.9756551]
[1721119545048,0.61402053,3372.7,3371.8,3.0099051]
[1721119545504,0.61402053,3372.7,3371.8,5.9755951]
[1721119545706,0.61402053,3372.6,3371.8,5.9755951]
[1721119545911,0.61402053,3372.5,3371.6,0.296601]
[1721119546145,0.61402053,3372.4,3371.6,0.296601]
[1721119547213,0.61402053,3372.4,3371.6,3.262531]
[1721119547561,0.61402053,3372.4,3371.6,0.296601]
[1721119547726,0.61402053,3372.4,3371.7,0.3262601]
[1721119548057,0.61402053,3372.5,3371.7,0.3262601]
[1721119548350,0.61402053,3372.6,3371.7,3.2921001]
[1721119548564,0.61402053,3372.8,3371.7,3.2921001]
[1721119548861,0.61402053,3372.9,3372.0,2.96559]
[1721119549062,0.61402053,3372.9,3371.8,6.63593011]
[1721119549250,0.61402053,3372.9,3371.9,2.96567]
[1721119549456,0.61402053,3372.9,3372.0,2.96557]
[1721119549624,0.61402053,3373.0,3372.1,0.05930358]
[1721119549827,0.61402053,3373.0,3372.1,2.9655]
[1721119550066,0.61402053,3373.0,3372.2,2.96542]
[1721119550226,0.61402053,3373.0,3372.4,2.96517]
[1721119550425,1.22804107,3373.4,3372.5,2.96515]
[1721119550426,0.61402053,3373.3,3372.5,2.96515]
[1721119551068,0.61402053,3373.2,3372.3,5.30542]
[1721119551371,0.61402053,3373.2,3372.4,2.96522]
[1721119552176,0.61402053,3373.3,3372.5,2.96515]
[1721119552472,0.61402053,3373.4,3372.7,2.96494]
[1721119553026,0.76131223,3373.5,3372.7,2.96494]
[1721119553231,0.1472917,3373.5,3373.0,3.113]
[1721119553433,0.1472917,3373.5,3373.2,2.96452]
[1721119553663,0.1472917,3373.5,3373.3,2.96438]
[1721119554376,0.1472917,3373.5,3373.1,2.3401]
[1721119554544,0.1472917,3373.5,3373.2,2.96452]
[1721119554743,0.1472917,3373.5,3373.3,0.826933]
[1721119555043,0.1472917,3373.5,3372.7,0.68531764]
[1721119555044,0.1472917,3373.5,3372.7,3.65026764]
[1721119555242,0.1472917,3373.5,3372.8,3.0]
[1721119555662,0.1472917,3373.5,3372.7,3.68531764]
[1721119556125,0.1472917,3373.5,3372.7,6.65028764]
[1721119556328,0.1472917,3373.5,3372.8,2.96485]
[1721119556566,0.1472917,3373.5,3372.9,0.89902676]
[1721119558961,0.1472917,3373.5,3372.9,3.86378676]
[1721119559172,0.1472917,3373.5,3372.9,0.89902676]
[1721119559371,0.1472917,3373.5,3372.8,2.96485]
[1721119559537,0.1472917,3373.5,3372.7,3.68531764]
[1721119559538,0.76093598,3373.5,3372.7,6.65028764]
[1721119559740,0.76093598,3373.5,3372.2,5.5177]
[1721119559930,0.6139873,3373.3,3372.3,2.96524]
[1721119560376,0.6139873,3373.2,3372.2,2.4047]
[1721119560736,0.6139873,3373.2,3372.0,2.96557]
[1721119560737,0.6139873,3373.0,3372.1,2.96547]
[1721119560941,0.6139873,3372.9,3371.7,2.3036]
[1721119561145,0.6139873,3372.8,3371.5,2.96601]
[1721119561373,0.6139873,3372.5,3371.5,2.96601]
[1721119561584,0.6139873,3372.3,3371.4,2.96609]
[1721119561892,0.92098096,3372.5,3371.2,2.4678]
[1721119561893,0.6139873,3372.4,3371.2,2.4678]
[1721119562099,0.6139873,3372.4,3370.6,7.3]
[1721119562100,0.6139873,3371.9,3370.9,2.96653]
[1721119562319,0.6139873,3371.9,3370.7,2.96673]
[1721119562584,0.6139873,3371.9,3370.6,2.4926]
[1721119562585,0.6139873,3371.7,3370.8,0.842624]
[1721119562805,0.6139873,3371.6,3370.8,0.842624]
[1721119563484,0.6139873,3371.6,3370.6,2.4926]
[1721119564063,0.6139873,3371.6,3370.6,5.45942]
[1721119564475,0.6139873,3371.5,3370.7,3.0]
[1721119564677,0.6139873,3371.5,3370.6,2.4926]
[1721119565846,0.6139873,3371.5,3370.5,5.96683]
[1721119566073,0.6139873,3371.5,3370.5,6.860222]
[1721119566289,0.6139873,3371.6,3370.5,6.860222]
[1721119566992,0.6139873,3371.6,3370.7,2.9667]
[1721119567148,0.92098096,3371.8,3370.9,2.96651]
[1721119567149,0.6139873,3371.8,3370.9,2.96651]
[1721119567796,0.6139873,3371.9,3370.9,2.96651]
[1721119568092,0.6139873,3371.9,3371.1,2.96638]
[1721119568247,0.6139873,3372.0,3371.1,2.96638]
[1721119568843,0.6139873,3372.1,3371.1,2.96638]
[1721119569049,0.6139873,3372.3,3371.7,2.96585]
[1721119569291,0.6139873,3372.5,3371.8,2.96577]
[1721119569451,0.6139873,3372.7,3371.8,2.96577]
[1721119569648,0.6139873,3372.7,3371.8,3.11377]
[1721119569858,0.6139873,3372.7,3371.8,3.721741]
[1721119570201,0.92098096,3372.8,3371.8,0.148]
[1721119570202,0.6139873,3372.4,3371.8,0.148]
[1721119570406,0.6139873,3372.5,3371.8,0.148]
[1721119570700,0.61255008,3372.5,3371.8,0.148]
[1721119571202,0.61255008,3372.4,3371.8,0.148]
[1721119571997,0.61255008,3372.5,3371.8,0.148]
[1721119573058,0.61255008,3372.4,3371.8,0.148]
[1721119573294,0.91882513,3372.5,3371.8,0.148]
[1721119573295,0.61255008,3372.3,3371.8,0.148]
[1721119573502,3.88398513,3372.5,3371.8,0.148]
[1721119573503,3.57809008,3372.1,3371.8,0.148]
[1721119573663,0.61325638,3371.9,3371.8,0.148]
[1721119574010,0.91882513,3372.0,3371.8,0.148]
[1721119574302,0.61327267,3371.9,3371.8,0.148]
[1721119574672,0.91882513,3372.0,3371.8,0.148]
[1721119575212,0.91882513,3371.9,3371.8,0.148]
[1721119576077,4.19070017,3372.0,3371.8,0.148]
[1721119576269,4.86312635,3371.9,3371.8,0.148]
[1721119576470,3.63802618,3371.9,3371.8,0.148]
[1721119576901,5.17122527,3371.9,3371.8,0.148]
[1721119577465,16.25539492,3371.9,3371.8,0.148]
[1721119577670,17.44012053,3371.9,3371.8,0.13320001]
[1721119578074,19.58658702,3371.9,3371.8,0.13320001]
[1721119578268,2.96667,3370.8,3370.0,2.4862]
[1721119578580,0.61308885,3370.7,3370.0,2.4862]
[1721119578973,2.96703,3370.4,3369.5,2.2924]
[1721119579284,2.96703,3370.4,3368.9,2.96826]
[1721119579285,0.61308885,3370.1,3368.9,2.96826]
[1721119579486,0.61308885,3370.1,3368.9,4.521175]
[1721119579775,0.61308885,3370.1,3369.1,2.96812]
[1721119579976,0.61308885,3370.2,3369.1,2.96812]
[1721119580706,0.91963327,3370.3,3369.2,2.96806]
[1721119580707,3.58018885,3370.3,3369.2,2.96806]
[1721119580874,0.61308885,3370.3,3369.2,2.96806]
[1721119581065,0.61308885,3370.3,3369.3,2.96797]
[1721119581272,0.61308885,3370.3,3369.2,3.7169895]
[1721119581273,0.61308885,3370.5,3369.4,2.96786]
[1721119581617,0.91963327,3370.7,3369.5,2.96779]
[1721119581618,0.61308885,3370.7,3369.5,2.96779]
[1721119581769,3.61308885,3370.7,3369.5,2.96779]
[1721119581971,0.61308885,3370.7,3369.7,2.96761]
[1721119582169,0.61308885,3370.7,3369.6,2.3068]
[1721119582170,0.61308885,3370.9,3369.8,0.82422]
[1721119582470,0.61308885,3371.1,3369.9,2.96737]
[1721119582671,3.88584327,3371.3,3369.9,2.96737]
[1721119582672,0.61308885,3371.2,3369.9,2.96737]
[1721119582986,0.61308885,3371.1,3370.1,2.96725]
[1721119583304,0.91963327,3371.3,3370.1,2.96725]
[1721119583305,0.61308885,3371.3,3370.1,2.96725]
[1721119583477,3.57925885,3371.4,3370.1,3.656349]
[1721119583685,0.61308885,3371.3,3370.2,0.05933767]
[1721119583986,3.57931885,3371.3,3370.1,0.689099]
[1721119584182,2.96623,3371.3,3370.1,0.689099]
[1721119584380,3.57921885,3371.4,3370.1,3.656329]
[1721119584612,3.57921885,3371.4,3370.1,3.71566664]
[1721119584613,0.61308885,3371.3,3370.1,3.71566664]
[1721119584905,0.61308885,3371.3,3370.3,2.2972]
[1721119585219,3.21,3372.0,3370.7,2.96666]
[1721119585220,0.61308885,3371.8,3370.7,2.96666]
[1721119585371,0.61308885,3371.8,3370.5,2.96691]
[1721119585693,0.61308885,3371.6,3370.3,5.26429]
[1721119586067,0.61248347,3371.5,3370.4,2.967]